[Event "GER-chT Youth Countries 2018"]
[Site "Wurzburg"]
[Date "2018.10.06"]
[Round "6"]
[White "Browning, Rebecca"]
[Black "Laux, Dominik"]
[Result "0-1"]
[ECO "B13"]
[WhiteElo "1873"]
[BlackElo "1987"]
[Annotator "NA RC"]
[PlyCount "96"]
[EventDate "2018.10.03"]
[EventType "team-tourn"]
[EventCountry "GER"]
[SourceTitle "playchess.com"]
[Source "ChessBase"]
[SourceQuality "1"]
[TimeControl "40/5400+30:1800+30"]

{[%evp 13,92,29,28,28,27,23,43,26,45,31,39,21,34,28,18,2,10,-18,0,-13,0,-11,-14,-38,5,-12,0,-18,-25,-26,10,4,39,57,162,24,114,-65,-59,-72,-29,-88,-74,-167,-172,-170,-179,-201,-230,-230,-222,-208,-228,-238,-219,-285,-238,-246,-240,-273,-316,-310,-231,-255,32767,32767,32767,32767,-263,-247,-222,-260,-235,-240,-247,-255,-276,-267,-238,-262,-279]} 1. e4 {[%emt 0:00:00]} c6 {[%emt 0:00:00]} 2. d4 {[%emt 0:00:00]} d5 {[%emt 0:00:00]} 3. exd5 {[%emt 0:00:00]} cxd5 {[%emt 0:00:00]} 4. Bd3 {[%emt 0:00:00]} Nc6 {[%emt 0:01:05]} 5. c3 {[%emt 0:01:29]} Nf6 {[%emt 0:00:15]} 6. Nf3 {[%emt 0:00:08]} Bg4 {[%emt 0:01:39]} 7. h3 {[%emt 0:02:46]} Bh5 {[%emt 0:00:08]} 8. Bf4 {[%emt 0:02:19]} e6 {[%emt 0:01:31] LiveBook: 9 Games} 9. Nbd2 {[%emt 0:02:57]} Bg6 {[%emt 0:06:18]} 10. Bxg6 {[%emt 0:00:37]} hxg6 {[%emt 0:00:05]} 11. Qb3 {[%emt 0:00:11]} Qc8 {[%emt 0:01:55]} 12. O-O {[%emt 0:01:41]} Be7 {[%emt 0:01:43]} 13. Rae1 {[%emt 0:01:38]} O-O {[%emt 0:03:26]} 14. Re3 {[%emt 0:02:14]} a6 {[%emt 0:06:26]} 15. Ne5 {[%emt 0:05:13]} b5 {[%emt 0:06:55]} 16. a3 {[%emt 0:01:55]} Ra7 {[%emt 0:05:56]} 17. Rfe1 {[%emt 0:02:18]} Na5 {[%emt 0:05:44]} 18. Qd1 {[%emt 0:00:26]} Rb7 {[%emt 0:05:15]} 19. Rf3 {[%emt 0:03:40]} Nc4 {[%emt 0:01:35]} 20. Ndxc4 {[%emt 0:00:17]} bxc4 {[%emt 0:00:41]} 21. Bc1 {[%emt 0:00:11]} Rb3 {[%emt 0:08:24]} 22. h4 {[%emt 0:03:21]} Bd6 {[%emt 0:07:51]} 23. Rh3 {[%emt 0:04:16]} Re8 {[%emt 0:02:56]} (23... Nh7 $14) 24. g4 {[%emt 0:04:31]} Kf8 {[%emt 0:02:38] [#]} (24... Bxe5 $11 25. Rxe5 Ne4) 25. g5 $2 {[%emt 0:02:37]} (25. h5 $1 $16) 25... Bxe5 {[%emt 0:03:31]} 26. dxe5 {[%emt 0:03:22]} Nd7 {[%emt 0:02:14]} 27. Qc2 {[%emt 0:00:51]} (27. h5 $11 {keeps the balance.}) 27... Ke7 {[%emt 0:03:16]} 28. Ree3 {[%emt 0:03:02]} (28. h5 $17 {war einen Versuch wert.}) 28... Rh8 {[%emt 0:02:14]} 29. Qd2 {[%emt 0:00:48]} Nc5 {[%emt 0:01:10]} 30. Ref3 {[%emt 0:01:42]} Nd3 {[%emt 0:01:38]} 31. Rxd3 {[%emt 0:03:05]} cxd3 {[%emt 0:00:07]} 32. Qxd3 {[%emt 0:00:02]} Qc4 {[%emt 0:04:01]} 33. Qe3 {[%emt 0:02:04]} Rb7 {[%emt 0:04:22]} 34. f4 {[%emt 0:01:32]} Rd7 {[%emt 0:01:50]} 35. Kf2 {[%emt 0:06:37]} d4 {[%emt 0:01:40]} 36. Qe4 {[%emt 0:05:59]} Rc8 {[%emt 0:02:52]} 37. Qc2 {[%emt 0:10:49]} dxc3 {[%emt 0:04:28]} 38. Rxc3 {[%emt 0:00:13]} Qd4+ {[%emt 0:00:07]} 39. Be3 {[%emt 0:00:06]} Rxc3 {[%emt 0:00:08]} 40. bxc3 {[%emt 0:00:07]} Qc4 {[%emt 0:02:16]} 41. Qb2 {[%emt 0:31:13]} Qc6 {[%emt 0:09:48]} 42. Qb4+ {[%emt 0:00:00]} Ke8 {[%emt 0:00:42]} 43. Qb8+ {[%emt 0:00:00]} Rd8 {[%emt 0:00:06]} 44. Qb4 {[%emt 0:00:00]} Rc8 {[%emt 0:01:17]} 45. Bd4 {[%emt 0:00:00]} Qb5 {[%emt 0:03:19]} 46. Ke3 {[%emt 0:00:00]} Rc4 $19 {[%emt 0:04:15]} 47. Qd6 {[%emt 0:00:00]} a5 {[%emt 0:02:11]} 48. Kd2 {[%emt 0:00:00]} Rc6 {[%emt 0:00:40]} 0-1

[Event "GER-chT Youth Countries 2018"]
[Site "Wurzburg"]
[Date "2018.10.06"]
[Round "6"]
[White "Koenze, Heike"]
[Black "Reuter, Elisa"]
[Result "1-0"]
[ECO "A15"]
[WhiteElo "1845"]
[BlackElo "1786"]
[Annotator "NA RC"]
[PlyCount "97"]
[EventDate "2018.10.03"]
[EventType "team-tourn"]
[EventCountry "GER"]
[SourceTitle "playchess.com"]
[Source "ChessBase"]
[SourceQuality "1"]
[TimeControl "40/5400+30:1800+30"]

{[%evp 13,97,-5,-6,-27,0,-5,0,-3,27,32,25,25,39,52,75,36,92,94,80,18,37,14,75,23,23,31,39,34,26,21,38,0,51,-166,-31,-95,-122,-216,-106,-142,-122,-113,-135,-120,0,-55,0,-126,-152,-151,-149,-144,-156,-135,-56,32767,-40,-31,-25,-43,42,39,110,115,108,140,117,93,141,70,121,95,69,0,0,0,40,0,625,626,671,769,798,795,826,1089]} 1. c4 {[%emt 0:00:00]} Nf6 {[%emt 0:00:00]} 2. g3 {[%emt 0:00:00]} g6 {[%emt 0:00:00]} 3. Bg2 {[%emt 0:00:00]} d5 {[%emt 0:00:00]} 4. d4 {[%emt 0:00:06]} c6 {[%emt 0:01:00]} 5. cxd5 {[%emt 0:00:55]} cxd5 {[%emt 0:00:11]} 6. Nc3 {[%emt 0:01:25] D71: Fianchetto Grünfeld: 3 g3 d5 sidelines and 5 cxd5 (without Nf3)} Nc6 {[%emt 0:01:53]} 7. Bg5 {[%emt 0:06:02]} Bg7 {[%emt 0:01:05]} 8. e3 {[%emt 0:06:55]} e6 {[%emt 0:00:59]} (8... Ne4 $5 {[%cal Re4g5]} 9. Bf4 h6 $11) 9. Nge2 {[%emt 0:01:41]} h6 $146 {[%emt 0:00:40]} ({Predecessor:} 9... O-O 10. O-O h6 11. Bxf6 Qxf6 12. Rc1 Bd7 13. Nf4 Qe7 {0-1 (45) Shabalov,A (2622)-Svidler,P (2763) Odessa 2008}) 10. Bf4 {[%emt 0:06:26]} g5 {[%emt 0:06:00]} 11. Be5 $1 {[%emt 0:00:16]} Nxe5 {[%emt 0:00:03]} 12. dxe5 {[%emt 0:00:09]} Nd7 {[%emt 0:01:17]} 13. f4 {[%emt 0:00:20]} a6 {[%emt 0:01:55]} 14. a4 {[%emt 0:03:23]} Qa5 {[%emt 0:08:23]} ({Lieber} 14... Qb6 $14) 15. Rb1 {[%emt 0:05:38]} Qb4 {[%emt 0:04:36]} 16. Qd4 {[%emt 0:00:46]} Qxd4 {[%emt 0:04:33]} 17. exd4 {[%emt 0:00:48]} Rb8 {[%emt 0:03:34]} (17... Nb8 $11 {remains equal.}) 18. Rc1 {[%emt 0:01:59]} Bf8 {[%emt 0:01:32]} 19. O-O {[%emt 0:01:56]} Nb6 {[%emt 0:02:39]} 20. b3 {[%emt 0:01:03]} Bd7 {[%emt 0:01:14]} 21. Nd1 {[%emt 0:08:37]} Nc8 {[%emt 0:00:36]} 22. Ne3 {[%emt 0:01:39]} Ne7 {[%emt 0:01:46]} (22... b5 $11) 23. Rc7 $2 {[%emt 0:00:53]} (23. Bf3 $14) 23... Nc6 {[%emt 0:00:45]} ({Black should try} 23... Bc6 $19 24. Bf3 Kd8 25. Rxe7 Bxe7) 24. fxg5 {[%emt 0:00:27]} (24. Bh3 $1 $15) 24... hxg5 {[%emt 0:00:19]} 25. Ng4 {[%emt 0:00:18] [#]} (25. h4 $17 {was the only defense.}) 25... Kd8 {[%emt 0:02:28]} (25... Be7 $1 $19 26. Nf6+ Bxf6 27. Rxf6 Kd8 28. Rxd7+ Kxd7 29. Rxf7+ Ne7) 26. Rxd7+ {[%emt 0:00:45]} Kxd7 {[%emt 0:00:12]} 27. Rxf7+ {[%emt 0:00:06]} Ke8 {[%emt 0:01:00]} 28. Rf6 $1 {[%emt 0:00:49]} Kd7 {[%emt 0:00:32]} 29. Rf7+ {[%emt 0:00:11]} Ke8 {[%emt 0:06:08]} 30. Rf6 {[%emt 0:00:07] [#]} Nd8 $1 {[%emt 0:00:26]} 31. Rg6 {[%emt 0:05:59]} Be7 {[%emt 0:00:24]} 32. Nh6 {[%emt 0:00:23]} Rc8 {[%emt 0:04:49]} 33. Bf3 {[%emt 0:01:14]} Kd7 {[%emt 0:01:21]} (33... Rc2 $19 34. Ng8 Bf8 35. Rxg5 Kf7) 34. Bg4 {[%emt 0:01:10]} Rc6 {[%emt 0:02:04]} 35. Ng8 {[%emt 0:02:32]} Rh7 {[%emt 0:03:33]} 36. Nxe7 {[%emt 0:05:00]} Rxe7 {[%emt 0:02:56]} ({Black should play} 36... Kxe7 $15 37. Rxg5 Rb6) 37. Rxg5 {[%emt 0:00:10]} Rb6 {[%emt 0:00:17] [#]} (37... Rf7 $11 {remains equal.}) 38. Nf4 $1 {[%emt 0:01:23]} Rxb3 {[%emt 0:00:26]} 39. Nxd5 $1 {[%emt 0:00:11]} Rf7 {[%emt 0:02:44]} 40. Nf6+ {[%emt 0:00:13]} Kc7 {[%emt 0:05:31]} 41. d5 {[%emt 0:32:08]} Rb1+ {[%emt 0:33:03]} 42. Kg2 {[%emt 0:00:26]} Rb2+ {[%emt 0:00:12]} 43. Kh3 {[%emt 0:00:22]} (43. Kf1 $14 exd5 44. Rg8) 43... exd5 {[%emt 0:00:44]} 44. Nxd5+ {[%emt 0:00:12]} Kc6 {[%emt 0:00:21]} 45. Nf4 {[%emt 0:00:45]} Re7 $2 {[%emt 0:01:31]} (45... Rh7+ $11 46. Bh5 Kd7) 46. Rg6+ {[%emt 0:01:00]} Ne6 {[%emt 0:02:30]} 47. Bxe6 {[%emt 0:02:20]} Rh7+ {[%emt 0:00:06]} 48. Kg4 {[%emt 0:00:10]} Kc7 $18 {[%emt 0:00:53]} 49. Nd5+ {[%emt 0:02:02]} 1-0

[Event "GER-chT Youth Countries 2018"]
[Site "Wurzburg"]
[Date "2018.10.06"]
[Round "6"]
[White "Bashylina, Luisa"]
[Black "Werner, Rosalie"]
[Result "1-0"]
[ECO "A08"]
[WhiteElo "1837"]
[BlackElo "1566"]
[Annotator "NA RC"]
[PlyCount "61"]
[EventDate "2018.10.03"]
[EventType "team-tourn"]
[EventCountry "GER"]
[SourceTitle "playchess.com"]
[Source "ChessBase"]
[SourceQuality "1"]
[TimeControl "40/5400+30:1800+30"]

{[%evp 16,61,0,-27,0,-44,-37,-52,-41,-44,-37,-35,-33,-43,-22,-93,-22,-32,0,-11,34,29,33,24,27,31,83,60,65,102,200,189,243,187,242,268,307,325,450,345,347,357,832,1189,2339,1085,1047,1169]} 1. e4 {[%emt 0:00:00]} e6 {[%emt 0:00:00]} 2. d3 {[%emt 0:00:00]} d5 {[%emt 0:00:00]} 3. Nd2 {[%emt 0:00:00]} Nf6 {[%emt 0:00:18]} 4. Ngf3 {[%emt 0:00:02]} c5 {[%emt 0:01:04]} 5. g3 {[%emt 0:00:07]} Nc6 {[%emt 0:00:10]} 6. Bg2 {[%emt 0:00:10]} Be7 {[%emt 0:00:47]} 7. O-O {[%emt 0:00:07]} O-O {[%emt 0:01:12]} 8. Re1 {[%emt 0:00:25]} Qc7 {[%emt 0:04:35]} 9. Nf1 {[%emt 0:01:15] C00: French: Unusual White 2nd moves} (9. e5 Nd7 10. Qe2 b5 11. Nf1 Bb7 12. Bf4 Rfc8 13. Ne3 Qd8 14. h4 h6 15. c3 b4 16. c4 Nb6 17. Rad1 Rc7 18. Ng4 Qf8 19. Qe3 Nd4 20. Nxd4 cxd4 {0-1 (44) Svidler,P (2760)-Kramnik,V (2800) Moscow 2018}) 9... Rd8 {[%emt 0:09:47]} 10. e5 {[%emt 0:00:51]} Nd7 {[%emt 0:01:26]} 11. Bf4 {[%emt 0:00:18]} Nf8 {[%emt 0:04:04]} 12. g4 {[%emt 0:19:42]} Ng6 {[%emt 0:04:43]} 13. Bg3 $1 {[%emt 0:01:26]} h6 $146 {[%emt 0:06:09]} ({Predecessor:} 13... b5 14. h4 Bb7 15. h5 Nf8 16. Qd2 d4 {0-1 (37) Griffe,D (1728)-Tatard,M (1905) France 2007}) 14. Qe2 {[%emt 0:06:57]} b6 {[%emt 0:02:29]} 15. N3d2 {[%emt 0:01:11]} (15. c3 $11 {remains equal.}) 15... Nd4 {[%emt 0:16:11]} ({Black should try} 15... Bg5 $17 16. Nf3 Nf4) 16. Qd1 {[%emt 0:00:29]} Bh4 {[%emt 0:03:12]} 17. f4 {[%emt 0:02:24]} Qe7 {[%emt 0:05:32]} 18. c3 {[%emt 0:01:09]} Nc6 {[%emt 0:00:49]} 19. Nf3 {[%emt 0:01:14]} Bxg3 {[%emt 0:03:01]} 20. hxg3 {[%emt 0:00:12]} Qc7 {[%emt 0:05:39]} 21. Rc1 {[%emt 0:03:45]} Bd7 {[%emt 0:04:15]} 22. d4 {[%emt 0:02:36]} c4 {[%emt 0:00:34]} (22... Rac8 $16 {ist wohl besser.}) 23. Ne3 {[%emt 0:00:26]} Qc8 {[%emt 0:00:12]} (23... Nce7 $142 24. Kf2 b5) 24. Rf1 {[%emt 0:00:24]} Nge7 {[%emt 0:01:17]} (24... Nce7 $142 25. Qc2 Qa6) 25. Nh4 {[%emt 0:00:27]} g6 {[%emt 0:01:19]} 26. Qc2 {[%emt 0:00:26]} Kh7 {[%emt 0:03:34]} 27. Bh3 {[%emt 0:01:16]} Rf8 {[%emt 0:00:51]} 28. f5 {[%emt 0:00:45]} g5 $2 {[%emt 0:00:26]} (28... Qc7 29. Kh2 Rg8 30. fxg6+ fxg6 31. Rf7+ Rg7) 29. fxe6+ {[%emt 0:00:16]} Ng6 {[%emt 0:01:42]} 30. exd7 {[%emt 0:00:35]} Qxd7 {[%emt 0:00:07]} 31. Nhf5 $18 {[%emt 0:00:19]} 1-0

[Event "GER-chT Youth Countries 2018"]
[Site "Wurzburg"]
[Date "2018.10.06"]
[Round "6"]
[White "Moenster, Madita"]
[Black "Musiolik, David"]
[Result "1-0"]
[ECO "C11"]
[WhiteElo "1817"]
[BlackElo "2057"]
[Annotator "NA RC"]
[PlyCount "66"]
[EventDate "2018.10.03"]
[EventType "team-tourn"]
[EventCountry "GER"]
[SourceTitle "playchess.com"]
[Source "ChessBase"]
[SourceQuality "1"]
[TimeControl "40/5400+30:1800+30"]

{[%evp 15,66,19,14,25,22,0,0,0,87,75,77,67,81,67,79,63,81,75,56,59,60,33,44,20,53,-105,-111,-68,-25,-48,66,54,68,39,32767,32767,32767,32767,32767,32767,32767,32767,32767,32767,32767,32767,32767,32767,29989,29973,32767,1472,29998]} 1. e4 {[%emt 0:00:00]} e6 {[%emt 0:00:00]} 2. d4 {[%emt 0:00:00]} d5 {[%emt 0:00:00]} 3. Nc3 {[%emt 0:00:00]} Nf6 {[%emt 0:00:00]} 4. e5 {[%emt 0:00:02]} Nfd7 {[%emt 0:00:00]} 5. f4 {[%emt 0:00:17]} c5 {[%emt 0:00:00]} 6. Nf3 {[%emt 0:00:17]} Nc6 {[%emt 0:00:20]} 7. Be3 {[%emt 0:00:35]} cxd4 {[%emt 0:03:12]} 8. Nxd4 {[%emt 0:04:58] LiveBook: 2066 Games} Bc5 {[%emt 0:00:07]} 9. Qd2 {[%emt 0:06:24]} a6 {[%emt 0:14:49]} 10. Nb3 {[%emt 0:20:00] C11: Französische Verteidigung} (10. O-O-O O-O 11. Qf2 Bxd4 12. Bxd4 b5 13. Be3 b4 14. Na4 a5 15. h4 Ba6 16. h5 Qc7 17. h6 g6 18. g4 Bxf1 19. Rhxf1 f5 20. exf6 Nxf6 {1-0 (35) Volokitin,A (2677)-Dizdar,G (2509) Austria 2017}) 10... Bxe3 {[%emt 0:08:30]} 11. Qxe3 {[%emt 0:00:16]} f6 {[%emt 0:03:03] [#]} (11... Ndxe5 $11 {keeps the balance.} 12. fxe5 d4 13. Nxd4 Qxd4 14. Qxd4 Nxd4) 12. exf6 $1 {[%emt 0:02:54]} Nxf6 {[%emt 0:00:14]} 13. O-O-O {[%emt 0:03:57]} O-O {[%emt 0:01:16]} 14. Kb1 $146 {[%emt 0:05:28]} ({Vorgänger:} 14. Be2 Qd6 15. Bf3 Bd7 16. g3 Rac8 17. Rhe1 b5 {1-0 (59) Masberg,S (2099)-Weyh,T (1980) Germany 2009}) 14... b5 {[%emt 0:07:15]} 15. g3 {[%emt 0:04:46]} Na5 {[%emt 0:10:37]} 16. Nxa5 {[%emt 0:08:22]} Qxa5 {[%emt 0:00:05]} 17. Bh3 {[%emt 0:01:38]} Re8 {[%emt 0:01:45]} 18. Rhe1 {[%emt 0:02:36]} Bd7 {[%emt 0:08:33]} 19. Qf3 {[%emt 0:03:28]} Rac8 {[%emt 0:07:49]} 20. g4 $2 {[%emt 0:21:16]} (20. f5 $14 {keeps the upper hand.}) 20... b4 {[%emt 0:13:07]} 21. Ne2 {[%emt 0:00:59]} Qb6 {[%emt 0:02:01]} (21... Ne4 $17 22. Nd4 Rf8) 22. Ng3 {[%emt 0:08:26]} Ba4 ({Better is} 22... Rc3 $11 23. Qe2 Ba4) 23. b3 {[%emt 0:03:34]} Bc6 {[%emt 0:07:24]} 24. Qd3 {[%emt 0:00:53]} Nd7 {[%emt 0:11:44]} 25. g5 {[%emt 0:00:30]} Nc5 {[%emt 0:00:30]} 26. Qd4 {[%emt 0:00:30]} g6 {[%emt 0:00:30]} 27. Bxe6+ {[%emt 0:00:30]} Rxe6 {[%emt 0:00:30]} 28. Rxe6 {[%emt 0:00:30]} Rc7 {[%emt 0:00:30]} 29. f5 {[%emt 0:00:30]} Qb5 {[%emt 0:00:30]} 30. Rd6 {[%emt 0:00:30]} Nb7 {[%emt 0:00:30]} 31. Rf6 {[%emt 0:00:30]} Rg7 {[%emt 0:00:30]} 32. Qe5 {[%emt 0:00:30]} Nd8 {[%emt 0:00:30]} 33. Qd6 $18 {[%emt 0:00:30]} Kh8 {[%emt 0:00:30]} 1-0

[Event "GER-chT Youth Countries 2018"]
[Site "Wurzburg"]
[Date "2018.10.06"]
[Round "6"]
[White "Werner, Denis"]
[Black "Farokhi, Keyvan"]
[Result "1/2-1/2"]
[ECO "C47"]
[WhiteElo "1817"]
[BlackElo "1855"]
[Annotator "NA RC"]
[PlyCount "63"]
[EventDate "2018.10.03"]
[EventType "team-tourn"]
[EventCountry "GER"]
[SourceTitle "playchess.com"]
[Source "ChessBase"]
[SourceQuality "1"]
[TimeControl "40/5400+30:1800+30"]

{[%evp 13,59,-8,0,4,-4,-6,0,0,9,-4,18,8,24,8,0,0,10,12,0,17,13,-6,-9,-10,41,26,19,1,40,46,35,45,41,39,41,6,8,11,50,40,57,48,46,62,64,0,27,0]} 1. e4 {[%emt 0:00:04]} e5 {[%emt 0:00:00]} 2. Nf3 {[%emt 0:00:30]} Nc6 {[%emt 0:00:00]} 3. Nc3 {[%emt 0:00:44]} Nf6 {[%emt 0:00:19]} 4. d4 {[%emt 0:01:06]} exd4 {[%emt 0:00:28]} 5. Nxd4 {[%emt 0:00:44]} Bb4 {[%emt 0:00:20]} 6. Nxc6 {[%emt 0:01:28]} bxc6 {[%emt 0:00:31]} 7. Bd3 {[%emt 0:01:32]} d5 {[%emt 0:00:54]} 8. exd5 {[%emt 0:01:59]} cxd5 {[%emt 0:00:49]} 9. O-O {[%emt 0:02:14]} O-O {[%emt 0:00:09]} 10. Bg5 {[%emt 0:01:28]} c6 {[%emt 0:00:13]} 11. Qf3 {[%emt 0:01:25]} ({But not} 11. Bxf6 Qxf6 12. Ne2 Bd6 $17) 11... Be7 {[%emt 0:00:23]} 12. h3 {[%emt 0:02:31]} Rb8 {[%emt 0:02:38]} 13. Na4 {[%emt 0:02:32] C47: Scotch Four Knights and Four Knights with 4 g3} ({Of course not} 13. Bxf6 Bxf6 14. Rab1 Qd6 $17) 13... h6 {[%emt 0:06:36]} 14. Bf4 {[%emt 0:03:32]} Bd6 {[%emt 0:00:25] LiveBook: 3 Games} 15. Bxd6 {[%emt 0:01:56]} (15. b3 Be6 16. Rad1 c5 17. Nc3 d4 18. Ne4 Bxf4 19. Qxf4 Nxe4 20. Qxe4 {1-0 (78) Werner,D (1772)-Farokhi,K (1845) Willingen 2018}) 15... Qxd6 {[%emt 0:00:03]} 16. b3 {[%emt 0:02:27]} Be6 {[%emt 0:05:04]} 17. Nc3 $146 {[%emt 0:02:46]} ({Predecessor:} 17. Qe3 d4 18. Qg3 Qxg3 19. fxg3 Nd5 20. Nc5 Rbd8 {1-0 (47) Gajek,R (2434)-Binder,M (2143) Vienna 2016}) 17... c5 {[%emt 0:13:56]} 18. Rad1 {[%emt 0:05:25]} d4 {[%emt 0:12:56]} 19. Ne4 {[%emt 0:09:15]} Nxe4 {[%emt 0:00:23]} 20. Qxe4 {[%emt 0:01:37]} f5 {[%emt 0:00:44]} 21. Qe2 {[%emt 0:02:21]} Rbe8 {[%emt 0:02:20]} 22. Bb5 {[%emt 0:04:15]} Re7 {[%emt 0:05:26]} 23. Rfe1 {[%emt 0:03:39]} Rff7 {[%emt 0:05:21]} 24. Bc4 {[%emt 0:04:36]} Bxc4 {[%emt 0:05:46]} 25. Qxc4 {[%emt 0:03:13]} Kf8 {[%emt 0:00:43]} 26. b4 {[%emt 0:03:42]} Rxe1+ {[%emt 0:06:51]} 27. Rxe1 {[%emt 0:00:42]} Re7 {[%emt 0:03:04]} 28. Rxe7 {[%emt 0:03:29]} Qxe7 {[%emt 0:00:03]} 29. Kf1 {[%emt 0:06:04]} (29. bxc5 $16 Qe1+ 30. Qf1) 29... cxb4 {[%emt 0:02:34]} 30. Qc8+ $11 {[%emt 0:00:42]} Kf7 31. Qxf5+ Qf6 32. Qc8 1/2-1/2

[Event "GER-chT Youth Countries 2018"]
[Site "Wurzburg"]
[Date "2018.10.06"]
[Round "6"]
[White "Fock, Amina"]
[Black "Doll, Rebecca"]
[Result "0-1"]
[ECO "C74"]
[WhiteElo "1816"]
[BlackElo "1722"]
[Annotator "NA RC"]
[PlyCount "52"]
[EventDate "2018.10.03"]
[EventType "team-tourn"]
[EventCountry "GER"]
[SourceTitle "playchess.com"]
[Source "ChessBase"]
[SourceQuality "1"]
[TimeControl "40/5400+30:1800+30"]

{[%evp 11,49,0,0,-83,-89,-109,-67,-109,-56,-93,-41,-93,-52,-75,-58,-75,-14,-129,-104,32767,-93,-154,-136,-171,-216,-242,-200,-320,-324,-299,-354,-342,-363,-442,-488,-859,-1066,-843,-980,-1663]} 1. e4 {[%emt 0:00:00]} e5 {[%emt 0:00:00]} 2. Nf3 {[%emt 0:00:00]} Nc6 {[%emt 0:00:00]} 3. Bb5 {[%emt 0:00:00]} a6 {[%emt 0:00:00]} 4. Ba4 {[%emt 0:00:00]} d6 {[%emt 0:00:00]} 5. c3 {[%emt 0:00:52]} f5 {[%emt 0:00:06] [#]} 6. d4 {[%emt 0:09:49] LiveBook: 11 Games} (6. exf5 $1 $16 Bxf5 7. O-O) 6... fxe4 {[%emt 0:00:38]} 7. d5 {[%emt 0:10:18] C74: Ruy Lopez: Deferred Steinitz: 5 c3 f5} (7. Nxe5 $11 {keeps the balance.} dxe5 8. Qh5+ Ke7 9. Bxc6 bxc6 10. Qg5+ (10. Qxe5+ $2 Kf7 $19) 10... Kd7 11. Qf5+ Ke8 12. Qh5+ Ke7 13. Qg5+ Ke8 14. Qh5+ Kd7 15. Qf5+ Ke8 16. Qh5+) (7. Ng5 exd4 8. Nxe4 Nf6 9. Nxf6+ Qxf6 10. O-O Be7 11. cxd4 O-O 12. Be3 Qg6 13. Bc2 Bf5 14. Bxf5 Qxf5 15. Qb3+ {1-0 (25) Caruana,F (2811)-Adhiban,B (2655) chess.com INT 2018}) 7... exf3 {[%emt 0:00:42]} 8. dxc6 {[%emt 0:04:51]} b5 {[%emt 0:02:08]} 9. Bc2 {[%emt 0:01:45]} Bg4 $146 {[%emt 0:12:09]} ({Predecessor:} 9... Nf6 10. Qxf3 Be7 11. Bg5 O-O 12. Nd2 Be6 13. Bxf6 Rxf6 14. Qd3 g6 15. h4 d5 16. Qe3 Qf8 17. Nf3 Bc5 18. Qxe5 Bd6 19. Qd4 Bc5 20. Qe5 Bd6 21. Qd4 {½-½ (21) Lisi,S (1964)-Pompili,U (1843) Viterbo 2009}) 10. g3 {[%emt 0:07:33]} Qf6 {[%emt 0:13:17]} (10... d5 $17 11. h3 Bh5) 11. Be4 {[%emt 0:12:25] [#]} Rd8 {[%emt 0:24:16]} (11... d5 $1 $17 {[%mdl 512]} 12. Qxd5 Rd8) 12. Nd2 {[%emt 0:03:43]} d5 {[%emt 0:01:29]} 13. Bxf3 {[%emt 0:01:24]} Bh3 {[%emt 0:02:46]} 14. Bg4 {[%emt 0:07:31]} (14. Bxd5 $1 $11 Qf5 15. Be4 Rxd2 16. Bxf5 Rxd1+ 17. Kxd1 Bxf5 18. Re1) 14... Bc5 {[%emt 0:03:56] [#]} 15. Bd7+ $1 {[%emt 0:02:57]} Bxd7 {[%emt 0:02:47]} 16. cxd7+ {[%emt 0:00:05]} Rxd7 {[%emt 0:00:40]} 17. Qe2 {[%emt 0:04:24]} (17. O-O $17 {is a better defense.}) 17... Rf7 {[%emt 0:03:36]} 18. O-O {[%emt 0:04:14]} Ne7 {[%emt 0:01:06]} 19. Kg2 {[%emt 0:05:42]} O-O {[%emt 0:02:09]} 20. f3 {[%emt 0:03:42]} Nf5 {[%emt 0:06:53]} 21. Nb3 {[%emt 0:01:54]} Bb6 {[%emt 0:01:17]} 22. a4 {[%emt 0:04:54]} Qg6 {[%emt 0:04:24]} 23. Qxe5 {[%emt 0:03:30]} (23. a5 $142 Ba7 24. f4) 23... Nh4+ {[%emt 0:03:05]} 24. Kh1 {[%emt 0:00:09]} Nxf3 {[%emt 0:01:33]} 25. Qxd5 $19 {[%emt 0:01:38]} c6 {[%emt 0:00:34]} 26. Qd1 {[%emt 0:03:19]} Qe4 0-1